bitfinex/quotes_SOLUSD_20241121
["timestamp","ask_amount","ask_price","bid_price","bid_amount"]
[1732225493821,67.96159584,253.79,253.78,64.5]
[1732225494197,67.96159584,253.79,253.78,5.03461709]
[1732225494399,55.86923992,253.79,253.78,5.03461709]
[1732225496529,20.0,253.79,253.78,5.03461709]
[1732225496700,12.09235592,253.79,253.78,5.03461709]
[1732225498020,35.86923992,253.79,253.78,5.03461709]
[1732225499325,12.09235592,253.79,253.78,5.03461709]
[1732225500501,35.86923992,253.79,253.78,5.03461709]
[1732225502707,55.86923992,253.79,253.78,5.03461709]
[1732225503024,55.86923992,253.79,253.63,1.9713]
[1732225503207,12.09235592,253.69,253.63,2.7598]
[1732225505005,12.09235592,253.71,253.63,14.85215592]
[1732225505220,23.776884,253.7,253.65,12.09235592]
[1732225506069,23.776884,253.7,253.63,14.85215592]
[1732225506209,23.776884,253.7,253.65,12.09235592]
[1732225506406,3.9411,253.74,253.67,12.09235592]
[1732225506407,23.776884,253.74,253.67,12.09235592]
[1732225506636,12.09235592,253.77,253.69,12.09235592]
[1732225506805,12.09235592,253.77,253.67,12.09235592]
[1732225507917,12.09235592,253.77,253.68,2.7592]
[1732225508319,12.09235592,253.77,253.69,12.09235592]
[1732225508516,23.776884,253.76,253.69,12.09235592]
[1732225508827,23.776884,253.78,253.69,12.09235592]
[1732225509223,23.776884,253.78,253.7,2.7591]
[1732225511729,12.09235592,253.77,253.7,2.7591]
[1732225512126,23.776884,253.76,253.7,2.7591]
[1732225513614,12.09235592,253.77,253.7,2.7591]
[1732225513615,23.776884,253.77,253.7,2.7591]
[1732225513832,12.09235592,253.81,253.71,12.09235592]
[1732225514035,12.09235592,253.83,253.74,12.09235592]
[1732225514233,12.09235592,253.85,253.76,12.09235592]
[1732225514614,12.09235592,253.87,253.76,12.09235592]
[1732225514821,12.09235592,253.87,253.78,12.09235592]
[1732225515812,12.09235592,253.87,253.79,2.7581]
[1732225516530,23.776884,253.86,253.79,2.7581]
[1732225519231,12.09235592,253.83,253.74,14.06275592]
[1732225519428,23.776884,253.82,253.74,14.06275592]
[1732225520137,23.776884,253.8,253.74,1.9704]
[1732225520313,23.776884,253.78,253.74,1.9704]
[1732225521142,23.776884,253.8,253.74,1.9704]
[1732225522313,12.09235592,253.79,253.74,1.9704]
[1732225522514,23.776884,253.78,253.74,1.9704]
[1732225523136,12.09235592,253.77,253.7,1.9708]
[1732225523337,12.09235592,253.71,253.65,1.9711]
[1732225523638,23.776884,253.65,253.59,9.0195]
[1732225523845,23.776884,253.65,253.59,2.7602]
[1732225524645,23.776884,253.67,253.59,2.7602]
[1732225525623,23.776884,253.67,253.6,12.09235592]
[1732225526841,23.776884,253.69,253.6,12.09235592]
[1732225527041,23.776884,253.69,253.62,12.09235592]
[1732225527340,23.776884,253.62,253.59,1.9716]
[1732225527535,23.776884,253.62,253.55,3.9439]
[1732225528051,23.776884,253.64,253.55,3.9439]
[1732225528738,12.09235592,253.61,253.54,2.7608]
[1732225528947,23.776884,253.6,253.54,2.7608]
[1732225531150,23.776884,253.54,253.48,2.7615]
[1732225532749,12.09235592,253.57,253.48,14.85385592]
[1732225532952,23.776884,253.56,253.5,12.09235592]
[1732225533632,23.776884,253.58,253.5,12.09235592]
[1732225534353,23.776884,253.58,253.51,2.7612]
[1732225534957,23.776884,253.56,253.51,2.7612]
[1732225535861,23.776884,253.56,253.51,1.9723]
[1732225536227,12.09235592,253.55,253.48,12.09235592]
[1732225536444,23.776884,253.52,253.46,1.9726]
[1732225536632,23.776884,253.5,253.46,1.9726]
[1732225537435,12.09235592,253.48,253.43,0.7891]
[1732225537634,23.776884,253.47,253.43,0.7891]
[1732225538071,23.776884,253.49,253.43,2.762]
[1732225539324,12.09235592,253.46,253.37,14.85495592]
[1732225539658,12.09235592,253.43,253.37,2.7626]
[1732225539861,23.776884,253.42,253.37,2.7626]
[1732225540833,23.776884,253.44,253.37,2.7626]
[1732225541562,23.776884,253.44,253.37,14.85495592]
[1732225541764,23.776884,253.46,253.41,12.09235592]
[1732225541946,23.776884,253.48,253.41,12.09235592]
[1732225542832,12.09235592,253.51,253.43,12.09235592]
[1732225544047,23.776884,253.5,253.43,12.09235592]
[1732225544352,23.776884,253.5,253.44,0.7891]
[1732225544568,23.776884,253.5,253.44,2.7619]
[1732225544756,28.50925592,253.54,253.45,12.09235592]
[1732225544952,23.776884,253.55,253.47,12.09235592]
[1732225545140,16.03625592,253.56,253.47,12.09235592]
[1732225545336,12.09235592,253.54,253.45,12.09235592]
[1732225546148,16.03655592,253.54,253.46,0.789]
[1732225546658,16.03655592,253.54,253.44,1.9728]
[1732225546659,12.09235592,253.52,253.44,1.9728]
[1732225546843,23.776884,253.51,253.44,2.7619]
[1732225547747,12.09235592,253.5,253.41,12.09235592]
[1732225547953,23.776884,253.49,253.41,12.09235592]
[1732225548346,12.09235592,253.48,253.41,12.09235592]
[1732225548535,12.09235592,253.46,253.4,2.7623]
[1732225548765,12.09235592,253.46,253.4,1.9731]
[1732225549134,23.776884,253.45,253.4,1.9731]
[1732225550160,23.776884,253.46,253.4,1.9731]
[1732225550662,175.8381,253.59,253.41,12.09235592]
[1732225550663,23.776884,253.49,253.41,12.09235592]
[1732225551356,12.09235592,253.46,253.4,1.9731]
[1732225551953,23.776884,253.45,253.4,14.06545592]
[1732225552262,23.776884,253.45,253.4,14.85465592]
[1732225552640,23.776884,253.47,253.4,14.85465592]
[1732225552839,23.776884,253.47,253.42,12.09235592]
[1732225553150,23.776884,253.49,253.42,12.09235592]
[1732225554156,23.776884,253.49,253.42,12.88145592]
[1732225554529,12.09235592,253.54,253.46,12.09235592]
[1732225555643,12.09235592,253.54,253.47,2.7616]
[1732225556162,23.776884,253.53,253.47,2.7616]
[1732225556754,23.776884,253.53,253.47,1.9726]
[1732225556962,23.776884,253.53,253.45,0.789]
[1732225558067,27.721184,253.53,253.45,0.789]
[1732225559268,27.721184,253.53,253.44,12.09235592]
[1732225559451,27.721184,253.53,253.44,12.88145592]
[1732225559841,27.721184,253.53,253.46,12.09235592]
[1732225560250,23.776884,253.55,253.46,12.09235592]
[1732225560558,23.776884,253.55,253.48,12.09235592]
[1732225561351,23.776884,253.49,253.38,1.9733]
[1732225561547,23.776884,253.46,253.38,14.06565592]
[1732225562073,23.776884,253.46,253.38,14.85495592]
[1732225562951,23.776884,253.46,253.4,12.09235592]
[1732225563155,27.721884,253.48,253.42,12.09235592]
[1732225564382,12.09235592,253.47,253.38,14.06565592]
[1732225564543,23.776884,253.46,253.38,14.06565592]
[1732225564970,23.776884,253.47,253.38,14.06565592]
[1732225565270,3.9453,253.46,253.4,12.09235592]
[1732225565471,27.722184,253.47,253.4,12.09235592]
[1732225565644,23.776884,253.45,253.36,12.09235592]
[1732225565846,23.776884,253.43,253.36,12.09235592]
[1732225566240,23.776884,253.43,253.35,12.09235592]
[1732225566867,3.946,253.42,253.35,12.09235592]
[1732225567048,3.946,253.42,253.35,12.88175592]
[1732225568060,23.776884,253.41,253.35,12.09235592]
[1732225569059,3.9463,253.4,253.35,12.09235592]
[1732225569873,3.9461,253.42,253.37,12.09235592]
[1732225570074,16.1372,253.47,253.39,12.09235592]
[1732225570252,12.09235592,253.5,253.41,12.09235592]
[1732225570972,12.09235592,253.45,253.35,2.7629]
[1732225571174,12.09235592,253.45,253.28,12.46641214]
[1732225571175,3.9457,253.44,253.37,12.09235592]
[1732225571880,23.776884,253.43,253.37,12.09235592]
[1732225572367,23.776884,253.43,253.29,6.7116]
[1732225572368,16.03725592,253.49,253.41,12.09235592]
[1732225572570,16.03725592,253.49,253.29,6.7116]
[1732225572571,3.9449,253.49,253.43,12.09235592]
[1732225573474,12.09235592,253.45,253.34,1.9736]
[1732225573793,12.09235592,253.45,253.37,12.09235592]
[1732225575278,3.9449,253.49,253.37,12.09235592]
[1732225575279,12.09235592,253.48,253.39,12.09235592]
[1732225576191,27.721784,253.49,253.41,12.09235592]
[1732225576482,27.721784,253.49,253.42,1.1838]
[1732225576772,12.09235592,253.48,253.41,12.09235592]
[1732225577084,12.09235592,253.48,253.4,16.23575592]
[1732225577566,23.776884,253.47,253.4,12.09235592]
[1732225577953,23.776884,253.45,253.38,13.27625592]
[1732225579053,12.09235592,253.5,253.4,12.09235592]
[1732225579258,6.3727,253.54,253.38,4.1438]
[1732225579259,3.9447,253.51,253.42,12.09235592]
[1732225579463,3.9447,253.51,253.44,12.09235592]
[1732225580151,3.9447,253.51,253.44,13.27605592]
[1732225580653,12.09235592,253.56,253.46,12.09235592]
[1732225580952,12.09235592,253.56,253.48,12.09235592]
[1732225581158,3.9437,253.57,253.48,12.09235592]
[1732225581772,3.9437,253.57,253.49,1.1834]
[1732225582077,23.776884,253.56,253.49,1.1834]
[1732225582280,35.86923992,253.56,253.48,1.1835]
[1732225582583,12.09235592,253.5,253.41,12.09235592]
[1732225582785,12.09235592,253.5,253.42,1.1837]
[1732225583453,12.09235592,253.5,253.41,12.09235592]
[1732225583658,23.776884,253.47,253.4,2.9597]
[1732225583861,27.722184,253.47,253.4,2.9597]
[1732225585058,23.776884,253.47,253.41,12.09235592]
[1732225585276,27.721884,253.49,253.41,12.09235592]
[1732225586391,27.721884,253.49,253.41,13.27615592]
[1732225586680,27.721884,253.49,253.41,16.23575592]
[1732225587179,23.776884,253.49,253.41,16.23575592]
[1732225587388,23.776884,253.49,253.3,24.66924857]
[1732225587389,23.776884,253.41,253.3,6.16731214]
[1732225587560,23.776884,253.37,253.29,12.09235592]
[1732225588161,23.776884,253.37,253.21,9.12921214]
[1732225588162,12.09235592,253.3,253.21,9.12921214]
[1732225588399,12.09235592,253.3,253.21,16.23895592]
[1732225588400,23.776884,253.29,253.21,16.23895592]
[1732225588664,23.776884,253.29,253.23,12.09235592]
[1732225589066,12.09235592,253.32,253.25,12.09235592]
[1732225589278,23.776884,253.33,253.27,12.09235592]
[1732225589863,23.776884,253.33,253.25,12.09235592]
[1732225590680,23.776884,253.33,253.25,13.27685592]
[1732225590862,23.776884,253.33,253.25,12.09235592]
[1732225591067,27.724384,253.33,253.25,12.09235592]
[1732225591262,27.724384,253.33,253.21,9.12921214]
[1732225591263,12.09235592,253.32,253.23,12.09235592]
[1732225591578,23.776884,253.31,253.23,12.09235592]
[1732225592661,3.9478,253.3,253.23,12.09235592]
[1732225593282,3.9478,253.3,253.22,1.1847]
[1732225593471,23.776884,253.23,253.11,18.25966806]
[1732225593780,12.09235592,253.2,253.11,13.27755592]
[1732225594099,23.776884,253.19,253.11,13.27755592]
[1732225594269,23.776884,253.17,253.1,2.9632]
[1732225594779,23.776884,253.17,253.1,10.31581214]
[1732225594981,23.776884,253.24,253.15,12.09235592]
[1732225595167,16.04075592,253.27,253.19,12.09235592]
[1732225595375,23.776884,253.26,253.19,12.09235592]
[1732225597987,27.725384,253.26,253.17,12.09235592]
[1732225598287,12.09235592,253.23,253.15,15.05485592]
[1732225598479,23.776884,253.22,253.15,16.23985592]
[1732225599692,12.09235592,253.25,253.17,12.09235592]
[1732225599996,23.776884,253.26,253.19,12.09235592]
[1732225600178,23.776884,253.28,253.21,12.09235592]
[1732225600369,23.776884,253.28,253.19,12.09235592]
[1732225600690,23.776884,253.28,253.21,12.09235592]
[1732225601063,27.725084,253.28,253.21,12.09235592]
[1732225602368,12.092356,253.4,253.23,12.09235592]
[1732225602600,12.09235592,253.35,253.26,12.09235592]
[1732225602769,12.09235592,253.33,253.26,12.09235592]
[1732225602965,12.09235592,253.33,253.21,4.1466]
[1732225602966,12.09235592,253.33,253.24,12.09235592]
[1732225603794,23.776884,253.32,253.24,12.09235592]
[1732225604097,27.724484,253.32,253.24,12.09235592]
[1732225604592,12.09235592,253.26,253.19,1.1848]
[1732225605367,23.776884,253.27,253.2,12.09235592]
[1732225605990,12.09235592,253.3,253.22,12.09235592]
[1732225606182,23.776884,253.29,253.23,1.1846]
[1732225608196,12.09235592,253.28,253.2,4.1468]
[1732225608394,12.09235592,253.28,253.2,16.23915592]
[1732225609197,27.724984,253.29,253.2,16.23915592]
[1732225609378,23.776884,253.29,253.2,16.23915592]
[1732225609584,23.776884,253.31,253.22,12.09235592]
[1732225610372,12.09235592,253.32,253.24,12.09235592]
[1732225610679,16.03965592,253.34,253.24,12.09235592]
[1732225611495,16.03965592,253.34,253.25,4.1461]
[1732225611697,16.03965592,253.34,253.2,6.16731214]
[1732225611698,12.09235592,253.28,253.2,6.16731214]
[1732225611877,12.09235592,253.24,253.15,12.09235592]
[1732225612201,23.776884,253.24,253.15,15.05495592]
[1732225612396,23.776884,253.21,253.13,19.44476806]
[1732225612609,23.776884,253.21,253.13,6.16731214]
[1732225613181,12.09235592,253.2,253.13,6.16731214]
[1732225613390,23.776884,253.19,253.13,6.16731214]
[1732225614174,23.776884,253.19,253.12,1.1851]
[1732225614486,27.726484,253.19,253.12,1.1851]
[1732225615376,27.726484,253.19,253.13,12.09235592]
[1732225615987,27.726484,253.19,253.11,12.09235592]
[1732225617097,27.726484,253.19,253.11,13.27755592]
[1732225618793,23.776884,253.19,253.11,13.27755592]
[1732225618993,23.776884,253.19,253.11,16.24065592]
[1732225619501,12.09235592,253.22,253.13,12.09235592]
[1732225619716,12.09235592,253.26,253.17,12.09235592]
[1732225620901,3.9487,253.25,253.17,13.27725592]
[1732225621110,23.776884,253.24,253.17,13.27725592]
[1732225621603,12.09235592,253.28,253.19,12.09235592]
[1732225621806,12.09235592,253.28,253.21,12.09235592]
[1732225622105,2.5,253.42,253.17,4.1473]
[1732225622106,13.277256,253.35,253.29,2.5]
[1732225622304,19.88609529,253.71,253.27,14.59235592]
[1732225622305,12.09235592,253.49,253.34,12.09235592]
[1732225622528,12.09235592,253.49,253.27,2.5]
[1732225622529,12.09235592,253.49,253.4,12.09235592]
[1732225622731,16.03735592,253.49,253.4,12.09235592]
[1732225622896,12.09235592,253.47,253.39,1.1839]
[1732225623415,16.03735592,253.49,253.4,12.09235592]
[1732225623596,23.776884,253.48,253.4,12.09235592]
[1732225624399,23.776884,253.46,253.38,12.09235592]
[1732225624699,23.34352369,253.48,253.39,19.39842369]
[1732225625089,19.39842369,253.48,253.39,19.39842369]
[1732225625318,23.34322369,253.5,253.41,19.39842369]
[1732225625504,19.39842369,253.48,253.39,19.39842369]
[1732225626411,23.776884,253.47,253.39,19.39842369]
[1732225627522,23.776884,253.47,253.39,20.58232369]
[1732225627815,19.39842369,253.54,253.44,19.39842369]
[1732225628024,19.39842369,253.52,253.42,19.39842369]
[1732225628319,19.39842369,253.5,253.4,19.39842369]
[1732225628517,19.39842369,253.48,253.39,4.1437]
[1732225629221,23.776884,253.47,253.4,19.39842369]
[1732225629730,19.39842369,253.54,253.44,19.39842369]
[1732225629916,19.39842369,253.52,253.42,19.39842369]
[1732225630135,19.39842369,253.48,253.4,19.39842369]
[1732225630317,19.39842369,253.46,253.39,2.9598]
[1732225630705,27.722384,253.45,253.39,2.9598]
[1732225631220,23.776884,253.45,253.39,2.9598]
[1732225631411,23.776884,253.45,253.39,22.35822369]
[1732225631609,23.776884,253.46,253.41,19.39842369]
[1732225631915,2.5,253.57,253.39,2.9598]
[1732225631916,23.776884,253.49,253.43,19.39842369]
[1732225632119,23.776884,253.51,253.43,19.39842369]
[1732225632698,27.721484,253.51,253.43,19.39842369]
[1732225632925,27.721484,253.51,253.43,20.58212369]
[1732225633807,27.721484,253.51,253.43,19.39842369]
[1732225634622,19.39842369,253.46,253.39,2.9598]
[1732225634808,19.39842369,253.44,253.35,19.39842369]
[1732225635000,19.39842369,253.42,253.33,22.35882369]
[1732225635321,23.776884,253.41,253.33,22.35882369]
[1732225636198,19.39842369,253.4,253.31,19.39842369]
[1732225636608,23.776884,253.39,253.31,19.39842369]
[1732225636809,23.776884,253.37,253.31,19.39842369]
[1732225637105,23.776884,253.39,253.35,19.39842369]
[1732225637629,23.776884,253.41,253.35,19.39842369]
[1732225638118,23.776884,253.43,253.35,19.39842369]
[1732225638329,27.722684,253.43,253.35,19.39842369]
[1732225638636,19.39842369,253.42,253.33,19.39842369]
[1732225638828,23.776884,253.41,253.33,19.39842369]
[1732225639504,27.723084,253.41,253.33,20.58262369]
[1732225643833,31.783774,253.46,253.33,20.58262369]
[1732225643834,3.9458,253.43,253.35,19.39842369]
[1732225644041,23.34402369,253.45,253.37,19.39842369]
[1732225644621,3.9453,253.47,253.39,19.39842369]
[1732225645827,3.9453,253.47,253.39,20.58232369]
[1732225646131,23.776884,253.46,253.43,19.39842369]
[1732225646432,23.776884,253.48,253.41,19.39842369]
[1732225646623,23.776884,253.48,253.41,12.12243908]
[1732225646929,35.89932308,253.48,253.39,15.08223908]
[1732225647102,23.776884,253.45,253.39,2.9598]
[1732225647306,23.776884,253.45,253.39,16.26613908]
[1732225647525,23.776884,253.47,253.39,16.26613908]
[1732225648101,3.945,253.49,253.32,2.9606]
[1732225648102,12.12243908,253.42,253.32,2.9606]
[1732225648306,12.12243908,253.38,253.3,12.12243908]
[1732225648609,23.776884,253.37,253.28,12.12243908]
[1732225648914,23.776884,253.35,253.28,12.12243908]
[1732225649526,27.723984,253.35,253.28,13.30683908]
[1732225650206,23.776884,253.36,253.3,12.12243908]
[1732225650921,23.776884,253.37,253.3,12.12243908]
[1732225651123,3.9464,253.39,253.34,12.12243908]
[1732225651124,23.776884,253.39,253.34,12.12243908]
[1732225651421,23.776884,253.41,253.36,12.12243908]
[1732225652022,16.06813908,253.44,253.36,13.30643908]
[1732225652241,3.9457,253.44,253.38,12.12243908]
[1732225652529,28.51963908,253.46,253.38,12.12243908]
[1732225652733,20.3426,253.46,253.38,12.12243908]
[1732225652926,12.12243908,253.44,253.36,4.1442]
[1732225653308,12.12243908,253.44,253.36,2.9602]
[1732225653309,23.776884,253.43,253.36,2.9602]
[1732225653808,3.9456,253.45,253.37,12.12243908]
[1732225654934,3.9456,253.45,253.37,13.30643908]
[1732225655135,23.776884,253.44,253.37,13.30643908]
[1732225656031,23.776884,253.45,253.39,12.12243908]
[1732225657228,23.776884,253.45,253.41,12.12243908]
[1732225658238,23.776884,253.45,253.39,13.30633908]
[1732225658422,23.776884,253.45,253.32,5.9211]
[1732225658423,12.12243908,253.42,253.33,12.12243908]
[1732225658626,23.776884,253.41,253.33,12.12243908]
[1732225658938,23.776884,253.41,253.32,2.9606]
[1732225658939,12.12243908,253.4,253.32,2.9606]
[1732225659253,23.9446,253.51,253.39,12.12243908]
[1732225659415,12.12243908,253.47,253.39,12.12243908]
[1732225659844,12.12243908,253.47,253.37,12.12243908]
[1732225660038,12.12243908,253.45,253.37,12.12243908]
[1732225660426,23.776884,253.44,253.36,1.184]
[1732225661117,23.776884,253.4,253.33,12.12243908]
[1732225661316,12.12243908,253.39,253.32,2.9606]
[1732225661520,23.776884,253.38,253.32,2.9606]
[1732225662136,23.776884,253.38,253.32,4.1448]
[1732225663816,23.776884,253.38,253.32,2.9606]
[1732225664017,23.776884,253.38,253.24,15.5431]
[1732225664018,12.12243908,253.33,253.25,12.12243908]
[1732225664337,23.776884,253.32,253.25,12.12243908]
[1732225665226,23.776884,253.34,253.25,12.12243908]
[1732225665425,27.724184,253.34,253.26,1.1845]
[1732225666147,23.776884,253.32,253.23,12.12243908]
[1732225667038,12.12243908,253.31,253.23,12.12243908]
[1732225667340,23.776884,253.3,253.23,12.12243908]
[1732225667544,27.724784,253.3,253.23,12.12243908]
[1732225667732,27.724784,253.3,253.23,13.30703908]
[1732225668118,27.724784,253.3,253.23,12.12243908]
[1732225669538,12.12243908,253.37,253.18,16.2604]
[1732225669539,12.12243908,253.35,253.27,12.12243908]
[1732225669920,12.12243908,253.37,253.27,12.12243908]
[1732225670127,16.06923908,253.37,253.27,12.12243908]
[1732225670746,12.12243908,253.35,253.27,12.12243908]
[1732225671242,23.776884,253.34,253.28,1.1844]
[1732225671954,16.06953908,253.35,253.29,12.12243908]
[1732225671955,23.776884,253.35,253.29,12.12243908]
[1732225672143,15.5763,253.41,253.33,12.12243908]
[1732225672328,12.12243908,253.4,253.33,12.12243908]
[1732225673024,12.12243908,253.4,253.31,12.12243908]
[1732225673223,23.776884,253.38,253.31,13.30673908]
[1732225674024,23.776884,253.38,253.31,16.26743908]
[1732225674228,23.776884,253.39,253.31,16.26743908]
[1732225675533,23.776884,253.4,253.33,12.12243908]
[1732225676534,23.776884,253.4,253.34,1.1841]
[1732225677331,12.12243908,253.44,253.35,12.12243908]
[1732225677640,16.6113,253.47,253.39,12.12243908]
[1732225677837,3.9453,253.47,253.39,12.12243908]
[1732225678851,3.9453,253.47,253.4,1.1838]
[1732225679528,12.12243908,253.5,253.41,12.12243908]
[1732225680530,12.12243908,253.48,253.4,4.1435]
[1732225680730,23.776884,253.47,253.4,4.1435]
[1732225682743,20.65414236,253.47,253.4,4.1435]
[1732225685266,12.12243908,253.48,253.4,4.1435]
[1732225685443,12.12243908,253.5,253.41,12.12243908]
[1732225685844,24.24487808,253.54,253.45,12.12243908]
[1732225686038,12.12243908,253.54,253.45,12.12243908]
[1732225686957,16.06663908,253.54,253.46,1.1836]
[1732225687164,23.776884,253.53,253.46,1.1836]
[1732225687732,15.764037,253.57,253.49,12.12243908]
[1732225687955,12.12243908,253.58,253.49,12.12243908]
[1732225688150,12.12243908,253.54,253.47,12.12243908]
[1732225689035,23.776884,253.53,253.47,13.30593908]
[1732225689559,31.6009,253.59,253.47,16.26483908]
[1732225689560,12.12243908,253.56,253.47,16.26483908]
[1732225689762,12.12243908,253.53,253.47,4.1424]
[1732225689934,12.12243908,253.55,253.47,4.1424]
[1732225690135,12.12243908,253.55,253.47,16.26483908]
[1732225690867,23.776884,253.54,253.47,16.26483908]
[1732225691173,23.776884,253.54,253.4,15.2522]
[1732225691174,12.12243908,253.51,253.43,2.9593]
[1732225691334,12.12243908,253.51,253.41,13.30623908]
[1732225691335,23.776884,253.5,253.41,13.30623908]
[1732225691538,12.12243908,253.49,253.41,13.30623908]
[1732225691851,23.776884,253.48,253.41,13.30623908]
[1732225692645,16.06733908,253.49,253.41,16.26583908]
[1732225692831,12.12243908,253.49,253.41,16.26583908]
[1732225693034,20.0,253.58,253.41,16.26583908]
[1732225693035,12.12243908,253.51,253.41,16.26583908]
[1732225693265,12.12243908,253.51,253.43,12.12243908]
[1732225693639,23.776884,253.53,253.45,12.12243908]
[1732225694141,12.12243908,253.52,253.46,1.1836]
[1732225694746,12.12243908,253.54,253.46,4.1426]
[1732225695462,12.12243908,253.52,253.43,12.12243908]
[1732225695657,12.12243908,253.5,253.41,16.26573908]
[1732225695853,12.12243908,253.48,253.41,4.1433]
[1732225702064,12.12243908,253.44,253.41,4.1433]
[1732225702276,12.12243908,253.44,253.35,12.12243908]
[1732225702453,12.12243908,253.46,253.39,12.12243908]
[1732225702869,12.12243908,253.46,253.37,12.12243908]
[1732225703453,12.12243908,253.46,253.38,4.1438]
[1732225706659,12.12243908,253.5,253.41,12.12243908]
[1732225706864,12.12243908,253.52,253.43,12.12243908]
[1732225707867,12.12243908,253.52,253.44,4.1429]
[1732225708710,12.12243908,253.52,253.45,12.12243908]
[1732225708866,12.12243908,253.54,253.47,12.12243908]
[1732225709382,12.12243908,253.56,253.47,12.12243908]
[1732225709760,12.12243908,253.56,253.48,4.1423]
[1732225712092,12.12243908,253.63,253.54,12.12243908]
[1732225712256,16.0766,253.65,253.58,12.12243908]
[1732225712453,28.19903908,253.65,253.56,12.12243908]
[1732225712958,28.19903908,253.65,253.45,5.0]
[1732225712959,2.5,253.38,253.24,6.16731214]
[1732225713159,12.12243908,253.25,253.16,13.30743908]
[1732225713983,12.12243908,253.25,253.16,16.26993908]
[1732225714486,12.12243908,253.27,253.18,12.12243908]
[1732225715370,12.12243908,253.19,253.16,4.1475]
[1732225715572,12.12243908,253.21,253.16,4.1475]
[1732225715873,12.12243908,253.21,253.16,2.9625]
[1732225716211,21.592,253.47,253.25,2.5]
[1732225716363,12.12243908,253.45,253.36,12.12243908]
[1732225716760,19.40091917,253.46,253.37,19.40091917]
[1732225716955,19.40091917,253.46,253.35,19.40091917]
[1732225717584,20.0,253.45,253.36,1.184]
[1732225717772,19.40091917,253.46,253.37,19.40091917]
[1732225717982,19.40091917,253.48,253.4,19.40091917]
[1732225718167,19.40091917,253.5,253.4,19.40091917]
[1732225718664,19.40091917,253.48,253.38,19.40091917]
[1732225719181,19.40091917,253.48,253.39,1.1839]
[1732225719663,19.40091917,253.48,253.29,2.5]
[1732225719862,19.40091917,253.48,253.39,19.40091917]
[1732225720387,23.776884,253.47,253.39,19.40091917]
[1732225721269,23.776884,253.47,253.39,20.58481917]
[1732225721678,19.40091917,253.5,253.39,23.54461917]
[1732225721884,19.40091917,253.5,253.42,19.40091917]
[1732225722174,19.40091917,253.5,253.39,4.1437]
[1732225722382,19.40091917,253.5,253.41,19.40091917]
[1732225722985,19.40091917,253.5,253.42,1.1838]
[1732225728390,6.3796,253.55,253.42,1.1838]
[1732225728391,19.40091917,253.54,253.45,19.40091917]
[1732225729285,6.3796,253.55,253.49,19.40091917]
[1732225729493,19.40091917,253.58,253.49,19.40091917]
[1732225729494,23.34451917,253.58,253.49,19.40091917]
[1732225730469,19.40091917,253.6,253.51,19.40091917]
[1732225730667,6.1572,253.61,253.53,19.40091917]
[1732225731483,10.1003,253.61,253.53,19.40091917]
[1732225731985,23.776884,253.6,253.53,19.40091917]
[1732225732295,43.17780317,253.6,253.53,19.40091917]
[1732225732666,19.40091917,253.58,253.52,1.1833]
[1732225732889,19.40091917,253.54,253.4,6.16731214]
[1732225733091,19.40091917,253.56,253.47,19.40091917]
[1732225733298,19.40091917,253.58,253.49,19.40091917]
[1732225734387,19.40091917,253.58,253.5,4.1419]
[1732225738468,19.40091917,253.52,253.45,2.9591]
[1732225738674,19.40091917,253.52,253.44,20.0]
[1732225739384,19.40091917,253.52,253.42,4.1433]
[1732225740300,19.40091917,253.5,253.42,4.1433]
[1732225740491,19.40091917,253.5,253.42,24.1433]
[1732225741398,3.9443,253.53,253.45,19.40091917]
[1732225742600,3.9443,253.53,253.45,20.58451917]
[1732225743292,3.9443,253.53,253.45,1.1836]
[1732225744404,19.40091917,253.58,253.49,19.40091917]
[1732225744603,19.40091917,253.6,253.45,1.1836]
[1732225744809,12.11290585,253.6,253.51,12.11290585]
[1732225745685,16.05610585,253.6,253.52,1.1833]
[1732225747504,16.05610585,253.6,253.52,4.1416]
[1732225750017,12.11290585,253.58,253.52,2.9583]
[1732225750689,16.05610585,253.6,253.52,2.9583]
[1732225751011,3.9432,253.6,253.53,12.11290585]
[1732225751187,3.9432,253.6,253.52,4.1416]
[1732225752413,12.11290585,253.61,253.52,4.1416]
[1732225752612,16.2005,253.7,253.6,12.11290585]
[1732225752794,12.11290585,253.69,253.6,12.11290585]
[1732225753421,3.9407,253.76,253.55,2.5]
[1732225753589,3.9407,253.76,253.66,12.11290585]
[1732225753807,12.11290585,253.75,253.66,12.11290585]
[1732225754008,12.11290585,253.73,253.64,12.11290585]
[1732225754193,12.11290585,253.69,253.62,12.11290585]